bitfinex-derivatives/quotes_BTCF0:USTF0_20250130
["timestamp","ask_amount","ask_price","bid_price","bid_amount"]
[1738249311620,0.6628,106140.0,106130.0,0.191475]
[1738249311919,0.188528,106100.0,106090.0,0.16426904]
[1738249312216,1.1197821,106100.0,106090.0,0.16426904]
[1738249312516,0.188546,106090.0,106080.0,0.49483333]
[1738249312722,0.549346,106090.0,106080.0,0.49483333]
[1738249312922,0.849346,106090.0,106080.0,0.49483333]
[1738249313118,0.188564,106080.0,106070.0,0.33003011]
[1738249313320,0.583164,106080.0,106070.0,0.33003011]
[1738249313914,0.188595,106070.0,106050.0,0.189095]
[1738249314116,0.7216,106060.0,106050.0,0.188615]
[1738249314421,1.1467741,106060.0,106040.0,0.20886921]
[1738249314621,0.3608,106050.0,106040.0,0.20886921]
[1738249315314,0.5973741,106050.0,106030.0,0.00155571]
[1738249315515,0.549435,106040.0,106030.0,0.00155571]
[1738249316413,0.583355,106040.0,106030.0,0.00155571]
[1738249317019,0.583315,106040.0,106030.0,0.00155571]
[1738249317423,0.549435,106040.0,106030.0,0.00755571]
[1738249318324,0.549435,106040.0,106030.0,0.00855571]
[1738249320229,0.3608,106040.0,106030.0,0.19720871]
[1738249320432,0.3608,106040.0,106030.0,0.23108871]
[1738249321432,0.3608,106050.0,106040.0,0.188635]
[1738249321628,0.3608,106050.0,106040.0,0.478235]
[1738249321935,0.00014122,106060.0,106050.0,0.188617]
[1738249322231,0.00014122,106060.0,106050.0,0.222457]
[1738249322430,0.00014122,106060.0,106050.0,0.583257]
[1738249323029,0.3608,106070.0,106060.0,0.188599]
[1738249323332,0.3608,106070.0,106060.0,0.222319]
[1738249323834,0.36221501,106090.0,106070.0,0.188573]
[1738249324035,0.36221501,106090.0,106070.0,0.583093]
[1738249324238,0.36235623,106090.0,106080.0,0.188564]
[1738249325323,0.00155623,106090.0,106080.0,0.549364]
[1738249325631,0.00014122,106090.0,106080.0,0.552364]
[1738249326131,0.00014122,106090.0,106080.0,0.191564]
[1738249326332,0.36094122,106090.0,106080.0,0.003]
[1738249326534,0.54948722,106090.0,106080.0,0.003]
[1738249326832,0.78606132,106090.0,106080.0,0.003]
[1738249328327,0.78706132,106090.0,106080.0,0.003]
[1738249328732,0.36194122,106090.0,106080.0,0.003]
[1738249329032,0.36194122,106090.0,106070.0,0.00014122]
[1738249329238,0.3608,106080.0,106070.0,0.00014122]
[1738249330333,0.7859381,106080.0,106070.0,0.00014122]
[1738249330722,0.70307524,106080.0,106070.0,0.00014122]
[1738249331333,0.188582,106070.0,106050.0,0.188614]
[1738249331537,0.3608,106060.0,106050.0,0.188614]
[1738249332434,1.06391724,106060.0,106040.0,0.49633917]
[1738249332630,0.3608,106050.0,106040.0,0.47836922]
[1738249333033,0.7008,106050.0,106040.0,0.47836922]
[1738249333326,0.7008,106050.0,106040.0,0.28974122]
[1738249333724,0.7008,106050.0,106040.0,0.47837622]
[1738249334735,0.7008,106050.0,106040.0,0.48137622]
[1738249335330,0.7008,106050.0,106040.0,0.48437622]
[1738249335836,0.7008,106050.0,106040.0,0.47837622]
[1738249336040,0.7008,106050.0,106040.0,0.48137622]
[1738249336634,2.24925,106050.0,106040.0,0.48137622]
[1738249337233,1.90925,106050.0,106040.0,0.48137622]
[1738249337534,1.33015,106050.0,106040.0,0.63508746]
[1738249337730,1.69095,106050.0,106040.0,0.51481622]
[1738249337931,1.69095,106050.0,106040.0,0.48137622]
[1738249338131,1.69095,106050.0,106040.0,0.51481622]
[1738249338336,1.33015,106050.0,106040.0,0.51481622]
[1738249338538,1.69095,106050.0,106040.0,0.51481622]
[1738249339442,1.33015,106050.0,106040.0,0.51469622]
[1738249339748,1.33015,106050.0,106040.0,0.66840746]
[1738249341136,1.33015,106050.0,106040.0,1.02924746]
[1738249341538,1.33015,106050.0,106040.0,0.51469622]
[1738249341742,1.69095,106050.0,106040.0,0.32606122]
[1738249342041,1.69095,106050.0,106040.0,0.51469622]
[1738249342249,2.03095,106050.0,106040.0,0.51469622]
[1738249344753,2.03095,106050.0,106040.0,0.36899622]
[1738249347552,1.69095,106050.0,106040.0,0.36899622]
[1738249347754,0.6265641,106050.0,106040.0,0.88350746]
[1738249347946,0.14010851,106070.0,106060.0,0.188599]
[1738249348151,0.10204997,106070.0,106060.0,0.73643024]
[1738249348346,0.10204997,106070.0,106060.0,1.01783024]
[1738249348568,0.08671792,106070.0,106060.0,1.37863024]
[1738249348975,0.44751792,106070.0,106060.0,0.503319]
[1738249349176,0.08971792,106070.0,106060.0,0.503319]
[1738249349473,0.08971792,106070.0,106060.0,0.65703024]
[1738249349865,0.08971792,106070.0,106060.0,0.503319]
[1738249350064,0.09171792,106070.0,106060.0,0.65703024]
[1738249350666,0.08971792,106070.0,106060.0,0.65703024]
[1738249350971,0.08971792,106070.0,106060.0,0.504319]
[1738249351166,0.45051792,106070.0,106060.0,0.001]
[1738249351470,0.90422916,106070.0,106040.0,0.00014122]
[1738249351669,1.06392824,106050.0,106040.0,0.00014122]
[1738249351971,0.910217,106050.0,106040.0,0.00014122]
[1738249352175,1.20062824,106050.0,106040.0,0.00014122]
[1738249352573,1.20062824,106050.0,106040.0,0.00314122]
[1738249352875,0.188666,106030.0,106000.0,0.288702]
[1738249353072,0.54948,106020.0,106010.0,0.27467181]
[1738249353260,0.91028,106020.0,106010.0,0.27467181]
[1738249353875,0.7216,106020.0,106010.0,0.27467181]
[1738249354077,0.87531124,106020.0,106010.0,0.27467181]
[1738249354665,0.87731124,106020.0,106010.0,0.27467181]
[1738249355075,0.88031124,106020.0,106010.0,0.27467181]
[1738249355667,0.88231124,106020.0,106010.0,0.46335981]
[1738249355867,0.88231124,106020.0,106010.0,0.27467181]
[1738249356469,0.88031124,106020.0,106010.0,0.27467181]
[1738249356678,0.88131124,106020.0,106010.0,0.27467181]
[1738249357172,0.88131124,106020.0,106010.0,0.46335981]
[1738249357376,0.188688,106010.0,106000.0,0.10014122]
[1738249357677,0.51451124,106010.0,106000.0,0.28884722]
[1738249357981,0.3608,106010.0,106000.0,0.28884722]
[1738249358770,0.3638,106010.0,106000.0,0.28884722]
[1738249358974,0.003,106010.0,106000.0,0.47771846]
[1738249359176,0.003,106010.0,106000.0,0.44255846]
[1738249359377,0.003,106010.0,106000.0,0.83847846]
[1738249359589,0.003,106020.0,106010.0,0.188688]
[1738249359800,0.003,106020.0,106010.0,0.70319924]
[1738249360291,0.16799961,106030.0,106020.0,0.18867]
[1738249360469,0.52879961,106030.0,106020.0,0.37750124]
[1738249360675,0.52879961,106030.0,106010.0,0.3608]
[1738249360676,0.36094122,106030.0,106010.0,0.223767]
[1738249361178,0.36094122,106030.0,106010.0,0.225767]
[1738249361886,0.34,106020.0,106010.0,0.225767]
[1738249362384,0.34,106020.0,106010.0,0.38547824]
[1738249362575,0.36094122,106030.0,106010.0,0.38547824]
[1738249362776,0.36094122,106030.0,106010.0,0.231767]
[1738249362979,0.7008,106020.0,106010.0,0.04292]
[1738249363479,0.34,106020.0,106010.0,0.19663124]
[1738249363686,0.34,106020.0,106010.0,0.34939924]
[1738249363885,0.36094122,106030.0,106010.0,0.38427924]
[1738249364189,0.36094122,106030.0,106020.0,0.15371124]
[1738249364489,0.70094122,106030.0,106020.0,0.34238124]
[1738249364686,0.34014122,106030.0,106020.0,0.34238124]
[1738249365286,0.70094122,106030.0,106010.0,0.74407424]
[1738249365480,0.70094122,106030.0,106010.0,0.38327424]
[1738249365681,0.70094122,106030.0,106010.0,0.37827424]
[1738249365877,0.70094122,106030.0,106020.0,0.002]
[1738249366287,0.70094122,106030.0,106010.0,0.37827424]
[1738249366598,0.70094122,106030.0,106010.0,0.38219424]
[1738249366879,0.70094122,106030.0,106020.0,0.34338124]
[1738249367086,0.70094122,106030.0,106020.0,0.18967]
[1738249367478,0.70094122,106030.0,106010.0,0.38319624]
[1738249368290,0.70094122,106030.0,106010.0,0.38219624]
[1738249368586,0.70094122,106030.0,106020.0,0.002]
[1738249369177,0.70094122,106030.0,106010.0,0.228365]
[1738249369378,0.3608,106020.0,106010.0,0.03968]
[1738249369573,0.3608,106020.0,106010.0,0.005]
[1738249369777,0.73794124,106020.0,106010.0,0.005]
[1738249370072,0.73794124,106020.0,106010.0,0.006]
[1738249370276,0.86764124,106020.0,106010.0,0.006]
[1738249370679,0.86764124,106020.0,106010.0,0.005]
[1738249370878,0.188688,106010.0,106000.0,0.10014122]
[1738249371078,0.188727,105990.0,105970.0,0.188754]
[1738249371277,0.3608,105980.0,105970.0,0.188754]
[1738249372181,0.3608,105980.0,105970.0,0.197754]
[1738249372679,0.7008,105980.0,105970.0,0.188754]
[1738249372988,0.34,105980.0,105970.0,0.197754]
[1738249373289,0.36094122,105990.0,105980.0,0.188741]
[1738249374679,0.36094122,105990.0,105980.0,0.198741]
[1738249375389,1.00337546,105990.0,105980.0,0.01]
[1738249375689,0.188759,105970.0,105960.0,0.00014122]
[1738249375888,0.90991124,105970.0,105950.0,0.00141543]
[1738249376087,0.90991124,105970.0,105920.0,0.326244]
[1738249376088,0.188805,105950.0,105920.0,0.326244]
[1738249376292,0.3608,105930.0,105920.0,0.188844]
[1738249376682,0.51451124,105930.0,105910.0,0.63129681]
[1738249376881,0.3608,105920.0,105910.0,0.27467181]
[1738249377188,0.3608,105920.0,105910.0,0.46367903]
[1738249378387,0.3618,105920.0,105910.0,0.19800722]
[1738249379678,0.3618,105920.0,105910.0,0.35171846]
[1738249379883,0.3618,105920.0,105910.0,0.38919846]
[1738249380083,0.3618,105920.0,105910.0,0.38915846]
[1738249380579,0.3618,105920.0,105910.0,0.04358122]
[1738249380792,0.51551124,105920.0,105910.0,0.01214122]
[1738249381086,0.70435924,105920.0,105910.0,0.01214122]
[1738249381784,0.85807048,105920.0,105910.0,0.01214122]
[1738249381985,0.188866,105910.0,105900.0,0.1]
[1738249382179,0.70337724,105910.0,105900.0,0.1]
[1738249382384,0.188896,105900.0,105870.0,0.491569]
[1738249382584,0.3608,105880.0,105870.0,0.491569]
[1738249383094,0.3608,105880.0,105870.0,0.457129]
[1738249383490,0.51451124,105880.0,105860.0,0.18909322]
[1738249383793,0.3608,105870.0,105860.0,0.18909322]
[1738249384379,0.7008,105870.0,105860.0,0.18909322]
[1738249384578,0.70031066,105870.0,105860.0,0.00014122]
[1738249385192,0.70031066,105870.0,105860.0,0.19209622]
[1738249385389,0.70031066,105870.0,105860.0,0.20109622]
[1738249385586,0.8540219,105870.0,105860.0,0.01214122]
[1738249385782,0.70031066,105870.0,105860.0,0.00314122]
[1738249385993,0.70131066,105870.0,105860.0,0.01214122]
[1738249386789,0.001,105870.0,105860.0,0.35380746]
[1738249387689,0.001,105870.0,105860.0,0.23437622]
[1738249388088,0.51551124,105870.0,105860.0,0.04542122]
[1738249388499,0.35897809,105870.0,105860.0,0.04542122]
[1738249389587,0.35897809,105870.0,105860.0,0.01114122]
[1738249389800,0.70162633,105870.0,105860.0,0.01114122]
[1738249391098,0.70162633,105870.0,105860.0,0.00214122]
[1738249391391,0.70162633,105870.0,105860.0,0.00314122]
[1738249391995,0.35897809,105870.0,105860.0,0.19209622]
[1738249392502,0.35897809,105870.0,105860.0,0.37976746]
[1738249392703,0.35897809,105870.0,105860.0,0.34580746]
[1738249392997,0.35897809,105870.0,105860.0,0.37980746]
[1738249393185,0.35897809,105870.0,105860.0,0.22609622]
[1738249394793,0.35897809,105870.0,105860.0,0.03714122]
[1738249394989,0.35897809,105870.0,105860.0,0.00314122]
[1738249395195,0.35897809,105870.0,105860.0,0.19209622]
[1738249395592,0.3608,105880.0,105870.0,0.188937]
[1738249396093,0.3608,105880.0,105870.0,0.34264824]
[1738249396299,0.3608,105880.0,105870.0,0.352857]
[1738249396997,0.3608,105880.0,105870.0,0.352817]
[1738249397497,0.3618,105880.0,105870.0,0.352817]
[1738249397699,0.51551124,105880.0,105860.0,0.20698558]
[1738249397897,0.51451124,105870.0,105860.0,0.00014122]
[1738249398198,0.3608,105870.0,105860.0,0.00014122]
[1738249398398,0.3608,105870.0,105860.0,0.18907922]
[1738249398705,0.3618,105880.0,105870.0,0.18892]
[1738249399008,0.001,105880.0,105870.0,0.34263124]
[1738249399396,0.36094122,105890.0,105880.0,0.188902]
[1738249399601,0.00014122,105890.0,105880.0,0.73733324]
[1738249399901,0.36094122,105890.0,105880.0,0.64343324]
[1738249400106,0.36094122,105890.0,105880.0,0.489722]
[1738249401009,0.36294122,105890.0,105880.0,0.489722]
[1738249401304,0.36294122,105890.0,105880.0,0.222822]
[1738249401509,0.36494122,105890.0,105880.0,0.222822]
[1738249401698,0.36494122,105890.0,105880.0,0.188902]
[1738249401893,0.36494122,105890.0,105870.0,0.317911]
[1738249402193,0.34,105880.0,105870.0,0.34262224]
[1738249402397,0.36494122,105890.0,105880.0,0.188902]
[1738249403108,0.51865246,105890.0,105870.0,0.2392444]
[1738249403304,0.3608,105880.0,105870.0,0.2392444]
[1738249403506,0.36494122,105890.0,105880.0,0.188902]
[1738249403700,0.36294122,105890.0,105880.0,0.188902]
[1738249404207,0.36294122,105890.0,105870.0,0.0175314]
[1738249404403,0.3608,105880.0,105870.0,0.2064434]
[1738249404600,0.3608,105880.0,105870.0,0.189912]
[1738249404820,0.70341324,105880.0,105870.0,0.001]
[1738249405102,0.64831124,105880.0,105860.0,0.00014122]
[1738249405302,0.3608,105870.0,105860.0,0.18907822]
[1738249405508,0.3608,105870.0,105860.0,0.34278946]
[1738249406002,0.3608,105870.0,105860.0,0.34279046]
[1738249406195,0.7008,105870.0,105860.0,0.34279046]
[1738249406402,0.3608,105870.0,105860.0,0.34279046]
[1738249406801,0.3618,105880.0,105860.0,0.34279046]
[1738249406802,0.3618,105880.0,105870.0,0.18892]
[1738249407002,0.7018,105880.0,105870.0,0.22292]
[1738249407307,0.7008,105880.0,105870.0,0.22292]
[1738249407700,0.7008,105880.0,105870.0,0.37663124]
[1738249407900,0.7008,105880.0,105870.0,0.37763124]
[1738249408106,0.7018,105880.0,105870.0,0.37763124]
[1738249408302,0.341,105880.0,105870.0,0.37763124]
[1738249408507,0.001,105880.0,105870.0,0.73843124]
[1738249408708,0.001,105880.0,105870.0,1.01153124]
[1738249410114,0.3618,105880.0,105870.0,0.46302]
[1738249410299,0.3618,105880.0,105870.0,0.001]
[1738249410504,0.70441324,105880.0,105870.0,0.001]
[1738249411506,0.66922248,105880.0,105860.0,0.27481303]
[1738249411711,0.70343124,105870.0,105860.0,0.27481303]
[1738249412017,0.3608,105870.0,105860.0,0.46375103]
[1738249412716,0.3608,105870.0,105860.0,0.46475103]
[1738249413212,0.3608,105880.0,105860.0,0.27581303]
[1738249413406,0.3608,105880.0,105870.0,0.18892]
[1738249414805,0.3608,105880.0,105870.0,0.18992]
[1738249415405,0.62690622,105880.0,105870.0,0.22348]
[1738249415604,0.47319498,105880.0,105870.0,0.22348]
[1738249416207,0.11339498,105880.0,105870.0,0.22348]
[1738249416407,0.47619498,105880.0,105870.0,0.22248]
[1738249416611,0.47619498,105880.0,105870.0,0.37619124]
[1738249416808,0.47619498,105880.0,105870.0,0.22248]
[1738249417119,0.66309698,105880.0,105870.0,0.001]
[1738249417306,0.47419498,105880.0,105870.0,0.18992]
[1738249418419,0.47619498,105880.0,105870.0,0.18892]
[1738249419117,0.34,105870.0,105860.0,0.20497882]
[1738249419319,0.88972,105870.0,105860.0,0.00014122]
[1738249420216,1.04343124,105870.0,105860.0,0.00014122]
[1738249420410,1.18303124,105870.0,105860.0,0.00014122]
[1738249420714,1.18403124,105870.0,105860.0,0.00114122]
[1738249421120,1.03032,105870.0,105860.0,0.19007922]
[1738249421512,1.18403124,105870.0,105860.0,0.00114122]
[1738249422422,1.18403124,105870.0,105860.0,0.19007822]
[1738249423422,1.10750622,105870.0,105840.0,0.047243]
[1738249423720,0.7216,105850.0,105840.0,0.236216]
[1738249423921,0.7216,105850.0,105840.0,0.188973]
[1738249424315,1.06426624,105850.0,105840.0,0.188973]
[1738249424724,0.910555,105850.0,105840.0,0.188973]
[1738249425112,0.911555,105850.0,105840.0,0.188973]
[1738249425320,0.7226,105850.0,105840.0,0.188973]
[1738249425509,0.7226,105850.0,105840.0,0.189973]
[1738249425920,0.7226,105850.0,105840.0,0.223373]
[1738249426115,1.06526624,105850.0,105840.0,0.189973]
[1738249426719,1.06426624,105850.0,105840.0,0.001]
[1738249426921,1.06526624,105850.0,105840.0,0.001]
[1738249427215,0.528973,105840.0,105830.0,9.416e-05]
[1738249427420,0.84308424,105840.0,105830.0,9.416e-05]
[1738249428325,0.689373,105840.0,105830.0,0.18908516]
[1738249428518,0.84408424,105840.0,105830.0,9.416e-05]
[1738249429027,0.84608424,105840.0,105830.0,0.18908516]
[1738249429224,0.84608424,105840.0,105830.0,9.416e-05]
[1738249430226,0.692373,105840.0,105830.0,0.18908516]
[1738249430427,0.84608424,105840.0,105830.0,0.18908516]
[1738249431324,0.3638,105840.0,105830.0,0.18908516]
[1738249431523,0.3638,105840.0,105830.0,0.3427964]
[1738249431718,0.4733362,105860.0,105830.0,0.1538054]
[1738249432025,0.50098656,105860.0,105850.0,0.188955]
[1738249432417,0.50098656,105860.0,105850.0,0.37606624]
[1738249432617,0.50098656,105860.0,105850.0,0.51436624]
[1738249433416,0.14018656,105860.0,105850.0,0.51436624]
[1738249433625,0.52865839,105870.0,105860.0,0.188937]
[1738249433928,0.16785839,105870.0,105860.0,0.47294824]
[1738249434129,0.55676518,105890.0,105860.0,0.64481124]
[1738249434319,0.55676518,105890.0,105880.0,0.188902]
[1738249434519,0.55676518,105890.0,105880.0,0.34261324]
[1738249435324,0.55676518,105890.0,105870.0,0.28415246]
[1738249435521,0.55676518,105890.0,105880.0,0.222302]
[1738249435721,0.47348416,105890.0,105880.0,0.222302]
[1738249435927,0.47348416,105890.0,105880.0,0.37601324]
[1738249436721,0.48248416,105890.0,105880.0,0.001]
[1738249437026,0.8260794,105890.0,105880.0,0.001]
[1738249437329,0.9593794,105890.0,105870.0,0.00014122]
[1738249437518,0.70341324,105880.0,105870.0,0.00014122]
[1738249437718,0.188952,105860.0,105840.0,0.49727]
[1738249437926,0.3608,105850.0,105840.0,0.49727]
[1738249438121,0.3608,105850.0,105840.0,0.65098124]
[1738249438436,0.3608,105850.0,105840.0,0.35477]
[1738249438623,0.549755,105850.0,105840.0,0.22237]
[1738249438927,0.34279746,105860.0,105840.0,0.3608]
[1738249439118,0.00014122,105860.0,105850.0,0.37606624]
[1738249439928,0.36094122,105860.0,105850.0,0.222355]
[1738249440130,0.00014122,105860.0,105850.0,0.222355]
[1738249440427,0.36094122,105860.0,105850.0,0.222355]
[1738249440633,0.36094122,105860.0,105850.0,0.37706624]
[1738249440938,0.36094122,105860.0,105850.0,0.223355]
[1738249441436,0.36094122,105860.0,105850.0,0.34766624]
[1738249441827,0.36094122,105860.0,105850.0,0.48926624]
[1738249442835,0.36094122,105860.0,105850.0,0.52266624]
[1738249443434,0.36094122,105860.0,105850.0,0.227355]
[1738249443636,0.36094122,105860.0,105850.0,0.005]
[1738249443838,0.36094122,105860.0,105850.0,0.190955]
[1738249444332,0.36094122,105860.0,105850.0,0.189955]
[1738249444540,0.36094122,105860.0,105850.0,0.193955]
[1738249445131,0.36094122,105860.0,105850.0,0.189955]
[1738249445636,0.11268416,105870.0,105860.0,0.188938]
[1738249445932,0.55108839,105900.0,105870.0,0.04723]
[1738249445933,0.36221739,105900.0,105870.0,0.04723]
[1738249446132,0.36221739,105900.0,105890.0,0.188884]
[1738249446529,0.36221739,105900.0,105890.0,0.34259524]
[1738249446738,0.36221739,105900.0,105890.0,0.188884]
[1738249447131,0.36221739,105900.0,105890.0,0.34259524]
[1738249447427,0.009,105900.0,105890.0,0.34359524]
[1738249447623,0.014,105900.0,105890.0,0.34359524]
[1738249447936,0.01,105900.0,105890.0,0.70339524]
[1738249448127,0.01,105900.0,105890.0,0.47749524]
[1738249448328,0.005,105900.0,105890.0,0.47771217]
[1738249448532,0.3688,105900.0,105890.0,0.13511693]
[1738249448845,0.71137724,105900.0,105880.0,0.00014122]
[1738249449030,0.51451124,105890.0,105880.0,0.00014122]
[1738249449231,0.3608,105890.0,105880.0,0.00014122]
[1738249449841,0.008,105900.0,105890.0,0.188884]
[1738249450137,0.001,105900.0,105890.0,0.34259524]
[1738249450441,0.001,105900.0,105890.0,0.51093524]
[1738249450442,0.003,105900.0,105890.0,0.51093524]
[1738249450828,0.36094122,105910.0,105890.0,0.51093524]
[1738249451033,0.008,105900.0,105890.0,0.357224]
[1738249451434,0.3688,105900.0,105890.0,0.357304]
[1738249452046,0.52251124,105900.0,105880.0,0.32474222]
[1738249452230,0.008,105900.0,105890.0,0.34259524]
[1738249452940,0.008,105900.0,105890.0,0.188884]
[1738249453140,0.003,105900.0,105890.0,0.188884]
[1738249453341,0.003,105900.0,105890.0,0.34259524]
[1738249453533,0.36894122,105910.0,105890.0,0.34259524]
[1738249453736,0.36394122,105910.0,105900.0,0.03372]
[1738249454236,0.36094122,105910.0,105900.0,0.222586]
[1738249454844,0.36894122,105910.0,105900.0,0.223666]
[1738249455233,0.52665246,105910.0,105880.0,0.01411125]
[1738249455441,0.188913,105880.0,105860.0,0.00141689]
[1738249455636,0.7216,105870.0,105860.0,0.00141689]
[1738249455833,1.0616,105870.0,105860.0,0.00141689]
[1738249456034,0.7216,105870.0,105860.0,0.00141689]
[1738249456238,1.06423124,105870.0,105860.0,0.00141689]
[1738249456436,0.91052,105870.0,105860.0,0.00541689]
[1738249457647,1.06423124,105870.0,105860.0,0.00541689]
[1738249458141,1.06423124,105870.0,105860.0,0.00641689]
[1738249458336,1.06423124,105870.0,105860.0,0.19535389]
[1738249458337,0.7216,105870.0,105860.0,0.19535389]
[1738249459845,0.7216,105870.0,105860.0,0.19135389]
[1738249460041,0.87531124,105870.0,105860.0,0.189937]
[1738249461243,0.7216,105870.0,105860.0,0.189937]
[1738249462845,0.87531124,105870.0,105860.0,0.189937]
[1738249463853,1.06423124,105870.0,105860.0,0.001]
[1738249465150,1.06423124,105870.0,105860.0,0.189937]
[1738249465151,0.87531124,105870.0,105860.0,0.189937]
[1738249465349,1.06423124,105870.0,105860.0,0.189937]
[1738249466754,0.87531124,105870.0,105860.0,0.189937]
[1738249469049,0.7216,105870.0,105860.0,0.189937]
[1738249469348,0.87531124,105870.0,105860.0,0.189937]
[1738249469748,1.06423124,105870.0,105860.0,0.189937]
[1738249469952,1.19783124,105870.0,105860.0,0.189937]
[1738249470353,1.00891124,105870.0,105860.0,0.189937]
[1738249470561,0.7216,105870.0,105860.0,0.189937]
[1738249470756,0.87531124,105870.0,105860.0,0.223337]
[1738249471058,0.3608,105870.0,105860.0,0.0344]
[1738249471257,0.65559206,105880.0,105870.0,0.18892]
[1738249471564,0.14108082,105880.0,105870.0,0.18892]
[1738249471762,0.13875457,105880.0,105870.0,0.70343124]
[1738249471952,0.13399581,105890.0,105880.0,0.188902]
[1738249472158,0.55676518,105910.0,105880.0,0.68605124]
[1738249472364,0.55676518,105910.0,105900.0,0.188866]
[1738249472558,0.55676518,105910.0,105900.0,0.222306]
[1738249472758,0.71047642,105910.0,105900.0,0.222306]
[1738249472955,0.51451124,105910.0,105890.0,0.319679]
[1738249473170,0.51451124,105910.0,105890.0,0.49174122]
[1738249473369,0.57519308,105920.0,105890.0,0.49174122]
[1738249473558,0.42148184,105920.0,105910.0,0.188848]
[1738249473867,0.78228184,105920.0,105910.0,0.188848]
[1738249474267,0.78228184,105920.0,105900.0,0.222339]
[1738249474458,0.3608,105910.0,105900.0,0.222339]
[1738249474867,0.3608,105910.0,105900.0,0.37605024]
[1738249475052,0.42948184,105920.0,105910.0,0.188848]
[1738249475263,0.42948184,105920.0,105910.0,0.34255924]
[1738249475757,0.42948184,105920.0,105910.0,0.70335924]
[1738249475961,0.43848184,105920.0,105910.0,0.34355924]
[1738249476360,0.43048184,105920.0,105910.0,0.34355924]
[1738249476755,0.43048184,105920.0,105910.0,0.189848]
[1738249477164,0.79128184,105920.0,105910.0,0.189848]
[1738249477956,0.79128184,105920.0,105910.0,0.001]
[1738249478157,0.79628184,105920.0,105910.0,0.001]
[1738249478356,0.37494122,105920.0,105910.0,0.001]
[1738249478562,0.37494122,105920.0,105910.0,0.189848]
[1738249479365,0.01414122,105920.0,105910.0,0.189848]
[1738249479565,0.19596518,105960.0,105910.0,0.66922248]
[1738249479774,0.19596518,105960.0,105950.0,0.70328824]
[1738249480066,0.17947997,105960.0,105950.0,0.73668824]
[1738249480266,0.08744621,105960.0,105950.0,0.87508824]
[1738249480768,0.09644621,105960.0,105950.0,0.84168824]
[1738249480961,0.10244621,105960.0,105950.0,0.87508824]
[1738249481361,0.09544621,105960.0,105950.0,0.87508824]
[1738249482274,0.008,105960.0,105950.0,0.87508824]
[1738249482764,0.002,105960.0,105950.0,0.87508824]
[1738249482971,0.003,105960.0,105950.0,0.87508824]
[1738249483370,0.00014122,105970.0,105960.0,0.188759]
[1738249483569,0.00014122,105970.0,105960.0,0.83897024]
[1738249484567,0.00614122,105970.0,105960.0,0.83897024]
[1738249485466,0.00614122,105970.0,105960.0,0.47817024]
[1738249485667,0.34614122,105970.0,105960.0,0.47817024]
[1738249486274,0.34614122,105970.0,105960.0,0.51153024]
[1738249486777,0.34614122,105970.0,105960.0,0.87233024]
[1738249487569,0.00614122,105970.0,105960.0,0.87233024]
[1738249487770,0.00614122,105970.0,105960.0,1.00103024]
[1738249488065,0.00141601,105980.0,105960.0,0.96598248]
[1738249488270,0.1,106000.0,105990.0,0.188706]
[1738249488575,0.00420654,106000.0,105990.0,1.09737724]
[1738249488777,0.3608,106030.0,106020.0,0.188652]
[1738249489077,0.3608,106050.0,106040.0,0.188617]
[1738249490179,0.3608,106050.0,106040.0,0.221977]
[1738249490369,0.3608,106050.0,106030.0,0.18877322]
[1738249490571,0.3608,106050.0,106030.0,0.22213322]
[1738249490772,0.3608,106050.0,106030.0,0.18877322]
[1738249490982,0.556402,106050.0,106040.0,0.001]
[1738249491280,0.3678,106050.0,106040.0,0.002]
[1738249491472,0.70858248,106050.0,106010.0,0.00141486]
[1738249491776,0.3608,106040.0,106010.0,0.5492861]
[1738249491967,0.3608,106040.0,106030.0,0.001]
[1738249492577,0.3608,106040.0,106030.0,0.002]
[1738249493180,0.51451124,106040.0,106030.0,0.002]
[1738249493381,0.70312824,106040.0,106020.0,0.00014122]
[1738249493681,0.3608,106030.0,106020.0,0.00014122]
[1738249494181,0.345,106040.0,106030.0,0.188635]
[1738249494476,0.005,106040.0,106030.0,0.73650624]
[1738249494685,0.005,106040.0,106030.0,0.88130624]
[1738249495573,0.001,106040.0,106030.0,0.88130624]
[1738249495775,0.004,106040.0,106030.0,0.727595]
[1738249496479,0.34014122,106050.0,106040.0,0.188617]
[1738249496678,0.49385246,106050.0,106040.0,0.188617]
[1738249496888,0.34014122,106050.0,106040.0,0.188617]
[1738249497082,0.49385246,106050.0,106040.0,0.188617]
[1738249497287,0.51465246,106050.0,106040.0,0.03336]
[1738249497582,0.51465246,106050.0,106030.0,0.465229]
[1738249497583,0.51465246,106050.0,106030.0,0.366789]
[1738249497774,0.7018,106040.0,106030.0,0.366789]
[1738249497980,0.341,106040.0,106030.0,0.727589]
[1738249498482,0.34,106040.0,106030.0,0.727589]
[1738249498987,0.341,106040.0,106030.0,0.727589]
[1738249499887,0.341,106040.0,106030.0,0.694229]
[1738249500190,0.341,106040.0,106030.0,0.727589]
[1738249500392,0.51551124,106040.0,106030.0,0.188629]
[1738249500688,0.001,106040.0,106030.0,0.549429]
[1738249501187,0.001,106040.0,106030.0,0.70314024]
[1738249501685,0.001,106040.0,106030.0,0.549429]
[1738249501889,0.001,106040.0,106030.0,0.582789]
[1738249502282,0.001,106040.0,106030.0,0.221989]
[1738249502993,0.3618,106040.0,106030.0,0.03336]
[1738249503183,0.70412824,106040.0,106020.0,0.34047316]
[1738249503487,0.001,106040.0,106030.0,0.188635]
[1738249503783,0.001,106040.0,106020.0,0.53230122]
[1738249503979,0.51551124,106040.0,106020.0,0.59561595]
[1738249504182,0.341,106040.0,106020.0,0.40696695]
[1738249504375,0.001,106040.0,106030.0,0.221955]
[1738249504578,0.15471124,106040.0,106030.0,0.221955]
[1738249504877,0.49471124,106040.0,106030.0,0.221955]
[1738249505082,0.49471124,106040.0,106030.0,0.03332]
[1738249505292,0.49471124,106040.0,106030.0,0.221955]
[1738249505485,0.341,106040.0,106030.0,0.221955]
[1738249505681,0.34,106040.0,106030.0,0.221955]
[1738249505882,0.49371124,106040.0,106030.0,0.221955]
[1738249506290,0.49471124,106040.0,106030.0,0.221955]
[1738249506490,0.341,106040.0,106030.0,0.221955]
[1738249506680,0.7018,106040.0,106030.0,0.221955]
[1738249506881,0.341,106040.0,106030.0,0.221955]
[1738249507594,0.342,106040.0,106030.0,0.221955]